[Event "*** Titled Tuesday 3|2 Blitz"]
[Site "Chess.com"]
[Date "2015.02.24"]
[Round "6"]
[White "xtremeungar"]
[Black "Zlatan56"]
[Result "0-1"]
[WhiteElo "2262"]
[BlackElo "2543"]
[TimeControl "180+2"]
[EndTime "12:19:29 PST"]
[Termination "Zlatan56 won on time"]

1. e4 {[%clk 0:03:00]} 1... d5 {[%clk 0:02:56.6]} 2. exd5 {[%clk 0:02:59.7]}
2... Qxd5 {[%clk 0:02:57.5]} 3. Nc3 {[%clk 0:03:00.7]} 3... Qa5 {[%clk
0:02:58.4]} 4. Bc4 {[%clk 0:03:01.8]} 4... Nf6 {[%clk 0:02:58.7]} 5. d3 {[%clk
0:03:01.8]} 5... Bg4 {[%clk 0:02:57.5]} 6. f3 {[%clk 0:03:02.5]} 6... Bd7 {[%clk
0:02:57.1]} 7. Ne2 {[%clk 0:02:56]} 7... e6 {[%clk 0:02:53.8]} 8. O-O {[%clk
0:02:50.4]} 8... Be7 {[%clk 0:02:53.4]} 9. Ne4 {[%clk 0:02:43.4]} 9... O-O
{[%clk 0:02:51.1]} 10. Kh1 {[%clk 0:02:37.3]} 10... Nc6 {[%clk 0:02:39.6]} 11.
d4 {[%clk 0:02:32]} 11... Rad8 {[%clk 0:02:37.9]} 12. Bd2 {[%clk 0:02:29.8]}
12... Qb6 {[%clk 0:02:38.7]} 13. c3 {[%clk 0:02:22]} 13... e5 {[%clk 0:02:38.5]}
14. Be3 {[%clk 0:01:34.2]} 14... Bf5 {[%clk 0:02:21.9]} 15. N4g3 {[%clk
0:01:26.6]} 15... Bg6 {[%clk 0:02:22.7]} 16. f4 {[%clk 0:01:27.6]} 16... exd4
{[%clk 0:02:19.9]} 17. cxd4 {[%clk 0:01:27.8]} 17... Bh5 {[%clk 0:01:45.9]} 18.
Nxh5 {[%clk 0:01:17.5]} 18... Nxh5 {[%clk 0:01:46.7]} 19. Qc1 {[%clk 0:01:13.8]}
19... Nb4 {[%clk 0:01:40.7]} 20. Nc3 {[%clk 0:01:03.7]} 20... Qc6 {[%clk
0:01:38.4]} 21. Bb5 {[%clk 0:00:50.7]} 21... Qf6 {[%clk 0:01:26.3]} 22. a3
{[%clk 0:00:38.8]} 22... Nd5 {[%clk 0:01:25.2]} 23. Nxd5 {[%clk 0:00:37.3]}
23... Rxd5 {[%clk 0:01:25]} 24. Bc4 {[%clk 0:00:38.1]} 24... Rdd8 {[%clk
0:01:22]} 25. Qc2 {[%clk 0:00:34.8]} 25... Qh6 {[%clk 0:01:21.3]} 26. Kg1 {[%clk
0:00:31]} 26... Bd6 {[%clk 0:01:20.9]} 27. Qf5 {[%clk 0:00:25.7]} 27... Rde8
{[%clk 0:01:18]} 28. Rae1 {[%clk 0:00:25.4]} 28... Qg6 {[%clk 0:01:16.4]} 29.
Qb5 {[%clk 0:00:18.2]} 29... Bxf4 {[%clk 0:01:06.6]} 30. Bd3 {[%clk 0:00:07.8]}
30... Qb6 {[%clk 0:00:47.4]} 31. Qxh5 {[%clk 0:00:07.6]} 31... g6 {[%clk
0:00:45.6]} 32. Qf3 {[%clk 0:00:07.9]} 32... Bxe3+ {[%clk 0:00:45.1]} 33. Rxe3
{[%clk 0:00:06.3]} 33... Qxd4 {[%clk 0:00:46.5]} 34. Re1 {[%clk 0:00:04.3]}
34... Rxe3 {[%clk 0:00:44.8]} 35. Qxe3 {[%clk 0:00:05.2]} 35... Qxb2 {[%clk
0:00:45.8]} 36. Bc4 {[%clk 0:00:05.4]} 36... c6 {[%clk 0:00:40.4]} 37. Rf1
{[%clk 0:00:06.6]} 37... Kg7 {[%clk 0:00:37.4]} 38. Qf4 {[%clk 0:00:07.5]} 38...
b5 {[%clk 0:00:32.5]} 39. Bxf7 {[%clk 0:00:08.5]} 39... a5 {[%clk 0:00:29.7]}
40. Kh1 {[%clk 0:00:09.9]} 40... a4 {[%clk 0:00:28]} 41. h4 {[%clk 0:00:10.3]}
41... h5 {[%clk 0:00:24.4]} 42. Qc7 {[%clk 0:00:09]} 42... Kh6 {[%clk
0:00:21.4]} 43. Qe7 {[%clk 0:00:08.7]} 43... Qg7 {[%clk 0:00:17.5]} 44. Qg5+
{[%clk 0:00:09.8]} 44... Kh7 {[%clk 0:00:18.7]} 45. Rf6 {[%clk 0:00:11.2]} 45...
Rxf7 {[%clk 0:00:18.4]} 46. Rxc6 {[%clk 0:00:06.8]} 46... Rf5 {[%clk 0:00:17]}
47. Qd8 {[%clk 0:00:05]} 47... Rf1+ {[%clk 0:00:16.4]} 48. Kh2 {[%clk
0:00:06.1]} 48... Qe5+ {[%clk 0:00:17]} 0-1

[Event "*** Titled Tuesday 3|2 Blitz"]
[Site "Chess.com"]
[Date "2015.02.24"]
[Round "6"]
[White "kinetix"]
[Black "gumersindo"]
[Result "0-1"]
[WhiteElo "1576"]
[BlackElo "2118"]
[TimeControl "180+2"]
[EndTime "12:19:32 PST"]
[Termination "gumersindo won on time"]

1. e4 {[%clk 0:02:52.8]} 1... e5 {[%clk 0:02:58.4]} 2. f4 {[%clk 0:02:53.7]}
2... d5 {[%clk 0:02:58.8]} 3. exd5 {[%clk 0:02:53.9]} 3... exf4 {[%clk
0:02:58.8]} 4. Nf3 {[%clk 0:02:52.9]} 4... Nf6 {[%clk 0:02:48.5]} 5. Nc3 {[%clk
0:02:53.8]} 5... Nxd5 {[%clk 0:02:47.6]} 6. Nxd5 {[%clk 0:02:55]} 6... Qxd5
{[%clk 0:02:48.2]} 7. d4 {[%clk 0:02:56.2]} 7... Bd6 {[%clk 0:02:42.4]} 8. Bd3
{[%clk 0:02:55.5]} 8... O-O {[%clk 0:02:34.4]} 9. c4 {[%clk 0:02:50.8]} 9...
Re8+ {[%clk 0:02:30.6]} 10. Kf2 {[%clk 0:02:51.8]} 10... Qh5 {[%clk 0:02:21.5]}
11. c5 {[%clk 0:02:50.5]} 11... Be7 {[%clk 0:01:42.9]} 12. Bxf4 {[%clk
0:02:48.5]} 12... Nc6 {[%clk 0:01:41.9]} 13. d5 {[%clk 0:02:38.3]} 13... Bxc5+
{[%clk 0:01:41.7]} 14. Kf1 {[%clk 0:02:39.1]} 14... Ne7 {[%clk 0:01:27.3]} 15.
Ne5 {[%clk 0:01:49.4]} 15... Qh4 {[%clk 0:01:03.2]} 16. Bg3 {[%clk 0:01:40.8]}
16... Qf6+ {[%clk 0:00:49.9]} 17. Qf3 {[%clk 0:01:27.4]} 17... Nf5 {[%clk
0:00:47.3]} 18. Bxf5 {[%clk 0:01:21.3]} 18... Bxf5 {[%clk 0:00:45.6]} 19. Re1
{[%clk 0:01:14.6]} 19... Bd6 {[%clk 0:00:20.9]} 20. Qf4 {[%clk 0:00:33.3]} 20...
g5 {[%clk 0:00:20.6]} 21. Qd4 {[%clk 0:00:13.9]} 21... Bd3+ {[%clk 0:00:16.4]}
22. Kg1 {[%clk 0:00:14.5]} 22... Bxe5 {[%clk 0:00:17.8]} 23. Bxe5 {[%clk
0:00:13.3]} 23... Rxe5 {[%clk 0:00:18.4]} 24. Qxe5 {[%clk 0:00:13.7]} 24... Qb6+
{[%clk 0:00:15]} 25. Qe3 {[%clk 0:00:13.8]} 25... Qb5 {[%clk 0:00:15.1]} 26.
Qxg5+ {[%clk 0:00:13.7]} 26... Bg6 {[%clk 0:00:15.7]} 27. h4 {[%clk 0:00:12.5]}
27... Qc5+ {[%clk 0:00:15.1]} 28. Kh2 {[%clk 0:00:11.6]} 28... Qd6+ {[%clk
0:00:15.7]} 29. g3 {[%clk 0:00:10]} 29... h5 {[%clk 0:00:14.4]} 30. Rhf1 {[%clk
0:00:08.8]} 30... c6 {[%clk 0:00:15.4]} 31. Rd1 {[%clk 0:00:07.2]} 31... cxd5
{[%clk 0:00:15.8]} 32. Rxd5 {[%clk 0:00:07.5]} 32... Qb6 {[%clk 0:00:17]} 33.
Rf6 {[%clk 0:00:05.3]} 33... Qxb2+ {[%clk 0:00:17.2]} 34. Rd2 {[%clk 0:00:06.4]}
34... Qb1 {[%clk 0:00:16.7]} 35. Rxg6+ {[%clk 0:00:07.1]} 35... Qxg6 {[%clk
0:00:17.2]} 36. Rd8+ {[%clk 0:00:05.4]} 36... Rxd8 {[%clk 0:00:17.5]} 37. Qxd8+
{[%clk 0:00:06.9]} 37... Kh7 {[%clk 0:00:19]} 38. Qc7 {[%clk 0:00:07.4]} 38...
Qe6 {[%clk 0:00:14.9]} 39. a4 {[%clk 0:00:04.1]} 39... Qa2+ {[%clk 0:00:15.1]}
40. Kh3 {[%clk 0:00:04.6]} 40... Qd5 {[%clk 0:00:15.6]} 41. a5 {[%clk
0:00:04.1]} 41... a6 {[%clk 0:00:16.3]} 42. Kh2 {[%clk 0:00:04.7]} 42... Qd2+
{[%clk 0:00:16.5]} 43. Kh3 {[%clk 0:00:05.3]} 43... Qd5 {[%clk 0:00:17.4]} 44.
Kh2 {[%clk 0:00:05.5]} 44... Kg7 {[%clk 0:00:18.6]} 45. Qf4 {[%clk 0:00:04.7]}
45... Qxa5 {[%clk 0:00:17.8]} 46. Qd4+ {[%clk 0:00:05.6]} 46... Kg8 {[%clk
0:00:18.3]} 47. Qf4 {[%clk 0:00:04.5]} 47... Qd5 {[%clk 0:00:19.1]} 48. Qb8+
{[%clk 0:00:04.7]} 48... Kg7 {[%clk 0:00:20]} 49. Qf4 {[%clk 0:00:03.7]} 49...
a5 {[%clk 0:00:21.2]} 0-1

[Event "*** Titled Tuesday 3|2 Blitz"]
[Site "Chess.com"]
[Date "2015.02.24"]
[Round "6"]
[White "GMHess"]
[Black "jcibarra"]
[Result "0-1"]
[WhiteElo "2488"]
[BlackElo "2501"]
[TimeControl "180+2"]
[EndTime "12:20:01 PST"]
[Termination "jcibarra won by resignation"]

1. e4 {[%clk 0:03:00]} 1... e5 {[%clk 0:02:58.5]} 2. Nf3 {[%clk 0:03:00.3]} 2...
d6 {[%clk 0:03:00]} 3. d4 {[%clk 0:02:59.3]} 3... exd4 {[%clk 0:03:01.9]} 4.
Nxd4 {[%clk 0:02:59.9]} 4... Nf6 {[%clk 0:03:03.1]} 5. Nc3 {[%clk 0:03:00.6]}
5... Be7 {[%clk 0:03:04.7]} 6. Bc4 {[%clk 0:03:00.7]} 6... O-O {[%clk
0:03:05.2]} 7. O-O {[%clk 0:02:59.3]} 7... c6 {[%clk 0:03:02.3]} 8. Re1 {[%clk
0:02:40.1]} 8... b5 {[%clk 0:03:02.1]} 9. Bb3 {[%clk 0:02:28.5]} 9... b4 {[%clk
0:02:57.6]} 10. Nb1 {[%clk 0:02:11.7]} 10... c5 {[%clk 0:02:58.4]} 11. Nf3
{[%clk 0:02:10.5]} 11... Bg4 {[%clk 0:02:32.8]} 12. e5 {[%clk 0:02:00.2]} 12...
dxe5 {[%clk 0:02:23]} 13. Qxd8 {[%clk 0:01:59]} 13... Rxd8 {[%clk 0:02:15.9]}
14. Nxe5 {[%clk 0:01:57]} 14... Bh5 {[%clk 0:02:16.8]} 15. c3 {[%clk 0:01:36.9]}
15... Bf8 {[%clk 0:02:04.9]} 16. cxb4 {[%clk 0:00:53.5]} 16... cxb4 {[%clk
0:02:05.7]} 17. Nd2 {[%clk 0:00:34.6]} 17... Na6 {[%clk 0:01:58.9]} 18. Bc4
{[%clk 0:00:28.3]} 18... Nc5 {[%clk 0:02:00.1]} 19. Nb3 {[%clk 0:00:24.2]} 19...
Na4 {[%clk 0:01:52.3]} 20. h3 {[%clk 0:00:18.8]} 20... Nb6 {[%clk 0:01:45.9]}
21. Ba6 {[%clk 0:00:16.2]} 21... Re8 {[%clk 0:01:24.7]} 22. Bg5 {[%clk
0:00:12.8]} 22... Nfd5 {[%clk 0:01:20]} 23. g4 {[%clk 0:00:13.2]} 23... f6
{[%clk 0:01:16.9]} 24. Bd2 {[%clk 0:00:12.6]} 24... fxe5 {[%clk 0:01:10.3]} 25.
gxh5 {[%clk 0:00:13.6]} 25... Nf4 {[%clk 0:01:06.6]} 26. Bxf4 {[%clk 0:00:10.2]}
26... exf4 {[%clk 0:01:08.5]} 27. Nd4 {[%clk 0:00:10.4]} 27... g6 {[%clk
0:01:03.5]} 28. hxg6 {[%clk 0:00:07.6]} 28... hxg6 {[%clk 0:01:05.4]} 29. Ne6
{[%clk 0:00:09.2]} 29... Bh6 {[%clk 0:01:01.4]} 30. Re4 {[%clk 0:00:08.3]} 30...
Rad8 {[%clk 0:00:55]} 31. Rae1 {[%clk 0:00:08.9]} 31... Rd2 {[%clk 0:00:49.7]}
32. Rxb4 {[%clk 0:00:09.3]} 32... Nd5 {[%clk 0:00:44.9]} 33. Rbe4 {[%clk
0:00:09.4]} 33... Nf6 {[%clk 0:00:44.8]} 34. R4e2 {[%clk 0:00:10]} 34... f3
{[%clk 0:00:43.6]} 35. Rxd2 {[%clk 0:00:08]} 35... Bxd2 {[%clk 0:00:45.5]} 36.
Rd1 {[%clk 0:00:09.2]} 36... Ba5 {[%clk 0:00:26.8]} 37. Bc4 {[%clk 0:00:10.4]}
37... Kh8 {[%clk 0:00:14.4]} 38. Rd3 {[%clk 0:00:10.6]} 38... Ne4 {[%clk
0:00:14.4]} 39. Nf4 {[%clk 0:00:08.6]} 39... Bb6 {[%clk 0:00:11.8]} 40. Bf7
{[%clk 0:00:07.6]} 40... Rc8 {[%clk 0:00:10.8]} 41. Bxg6 {[%clk 0:00:06.5]}
41... Nxf2 {[%clk 0:00:12.1]} 42. Rd7 {[%clk 0:00:06.7]} 42... Nxh3+ {[%clk
0:00:12.1]} 43. Kh2 {[%clk 0:00:08.2]} 43... Nxf4 {[%clk 0:00:13.7]} 44. Bf5
{[%clk 0:00:09.4]} 44... Rc2+ {[%clk 0:00:13.8]} 45. Kg3 {[%clk 0:00:09.5]}
45... f2 {[%clk 0:00:15.2]} 46. Rh7+ {[%clk 0:00:08.3]} 46... Kg8 {[%clk
0:00:16.2]} 47. Rh1 {[%clk 0:00:10.2]} 47... Ne2+ {[%clk 0:00:16.7]} 48. Kg4
{[%clk 0:00:10.1]} 48... Rxb2 {[%clk 0:00:17.5]} 49. Rf1 {[%clk 0:00:10.1]}
49... Kg7 {[%clk 0:00:16.2]} 50. Be6 {[%clk 0:00:10.6]} 50... Kf6 {[%clk
0:00:17.1]} 51. Bb3 {[%clk 0:00:11.8]} 51... Nd4 {[%clk 0:00:16.8]} 52. Bd5
{[%clk 0:00:11.9]} 52... Nf5 {[%clk 0:00:17.9]} 53. Kf3 {[%clk 0:00:11.5]} 53...
Ne3 {[%clk 0:00:19]} 54. Rxf2 {[%clk 0:00:09.7]} 54... Rxf2+ {[%clk 0:00:20]}
55. Kxf2 {[%clk 0:00:11.6]} 55... Nxd5+ {[%clk 0:00:21.9]} 56. Ke2 {[%clk
0:00:12.4]} 56... Ke5 {[%clk 0:00:23.8]} 57. Kd3 {[%clk 0:00:14.3]} 0-1

[Event "*** Titled Tuesday 3|2 Blitz"]
[Site "Chess.com"]
[Date "2015.02.24"]
[Round "6"]
[White "kesarev"]
[Black "AUSSIE_PINOY"]
[Result "1/2-1/2"]
[WhiteElo "2257"]
[BlackElo "2359"]
[TimeControl "180+2"]
[EndTime "12:20:11 PST"]
[Termination "Game drawn by agreement"]

1. Nf3 {[%clk 0:03:00]} 1... c5 {[%clk 0:02:59.2]} 2. c4 {[%clk 0:03:00.9]} 2...
b6 {[%clk 0:03:00.3]} 3. Nc3 {[%clk 0:03:01.2]} 3... Bb7 {[%clk 0:03:01.9]} 4.
e4 {[%clk 0:03:02.3]} 4... d6 {[%clk 0:03:02.4]} 5. d4 {[%clk 0:03:03.3]} 5...
cxd4 {[%clk 0:03:03.1]} 6. Nxd4 {[%clk 0:03:04.1]} 6... Nf6 {[%clk 0:03:04.3]}
7. Bd3 {[%clk 0:03:04.4]} 7... a6 {[%clk 0:03:05.4]} 8. O-O {[%clk 0:03:04.9]}
8... e6 {[%clk 0:03:06.7]} 9. b3 {[%clk 0:03:05.7]} 9... Nbd7 {[%clk 0:03:07.6]}
10. Bb2 {[%clk 0:03:06.5]} 10... Be7 {[%clk 0:03:08.9]} 11. Rc1 {[%clk
0:03:06.8]} 11... O-O {[%clk 0:03:09.7]} 12. f4 {[%clk 0:03:03.6]} 12... Rc8
{[%clk 0:03:04.7]} 13. Qf3 {[%clk 0:02:49.1]} 13... Re8 {[%clk 0:03:04.3]} 14.
Qh3 {[%clk 0:02:47]} 14... Bf8 {[%clk 0:03:04.6]} 15. Bb1 {[%clk 0:02:41.3]}
15... Qc7 {[%clk 0:02:52.2]} 16. Kh1 {[%clk 0:02:35.8]} 16... g6 {[%clk
0:02:43.7]} 17. Rce1 {[%clk 0:01:56.1]} 17... e5 {[%clk 0:02:38]} 18. fxe5
{[%clk 0:01:49.3]} 18... dxe5 {[%clk 0:02:38.7]} 19. Nf3 {[%clk 0:01:34.1]}
19... Bg7 {[%clk 0:02:38.3]} 20. Nd5 {[%clk 0:01:24]} 20... Bxd5 {[%clk
0:02:38.2]} 21. exd5 {[%clk 0:01:25.9]} 21... h5 {[%clk 0:02:36.2]} 22. Ng5
{[%clk 0:01:20.5]} 22... b5 {[%clk 0:02:26.6]} 23. Rc1 {[%clk 0:00:52.6]} 23...
bxc4 {[%clk 0:02:26.7]} 24. bxc4 {[%clk 0:00:53.3]} 24... Qd6 {[%clk 0:02:13.7]}
25. Qg3 {[%clk 0:00:50.3]} 25... Qb4 {[%clk 0:01:58.9]} 26. Ba3 {[%clk
0:00:45.4]} 26... Qb7 {[%clk 0:01:46.8]} 27. Bd6 {[%clk 0:00:40.4]} 27... e4
{[%clk 0:01:45.9]} 28. Rfe1 {[%clk 0:00:26.6]} 28... Qb2 {[%clk 0:01:36.5]} 29.
Ba3 {[%clk 0:00:18.7]} 29... Qe5 {[%clk 0:01:11.4]} 30. Qxe5 {[%clk 0:00:18.8]}
30... Nxe5 {[%clk 0:01:12.6]} 31. Nxe4 {[%clk 0:00:18.2]} 31... Nxc4 {[%clk
0:00:54.4]} 32. Nxf6+ {[%clk 0:00:18.5]} 32... Bxf6 {[%clk 0:00:55.6]} 33. Rxe8+
{[%clk 0:00:20.3]} 33... Rxe8 {[%clk 0:00:56.3]} 34. Bc5 {[%clk 0:00:21.6]}
34... Ne5 {[%clk 0:00:42.7]} 35. Kg1 {[%clk 0:00:19.7]} 35... Nd7 {[%clk
0:00:43.7]} 36. Bf2 {[%clk 0:00:19.3]} 36... Be5 {[%clk 0:00:41.8]} 37. Bd3
{[%clk 0:00:19.3]} 37... Nf6 {[%clk 0:00:31.4]} 38. Bxa6 {[%clk 0:00:17.5]}
38... Nxd5 {[%clk 0:00:32.6]} 39. a4 {[%clk 0:00:18.5]} 39... Nc3 {[%clk
0:00:31.1]} 40. Bd3 {[%clk 0:00:16.4]} 40... Ra8 {[%clk 0:00:30.5]} 41. Bb5
{[%clk 0:00:12.5]} 41... Rb8 {[%clk 0:00:27]} 42. Re1 {[%clk 0:00:13.2]} 42...
Bf6 {[%clk 0:00:27.2]} 43. Bc6 {[%clk 0:00:13.8]} 43... Bd8 {[%clk 0:00:23.5]}
44. h4 {[%clk 0:00:12.3]} 44... Ba5 {[%clk 0:00:23.7]} 45. Bg3 {[%clk
0:00:12.1]} 45... Rc8 {[%clk 0:00:23.9]} 46. Bd7 {[%clk 0:00:12.6]} 46... Rd8
{[%clk 0:00:24.6]} 47. Bc6 {[%clk 0:00:13.7]} 47... Nd5 {[%clk 0:00:25.2]} 48.
Re8+ {[%clk 0:00:13.2]} 48... Rxe8 {[%clk 0:00:25.3]} 49. Bxe8 {[%clk
0:00:15.1]} 49... Nc3 {[%clk 0:00:25.9]} 50. Bc6 {[%clk 0:00:15.9]} 50... Kg7
{[%clk 0:00:27]} 51. Be5+ {[%clk 0:00:16.6]} 51... f6 {[%clk 0:00:28.2]} 52.
Bxc3 {[%clk 0:00:17.7]} 52... Bxc3 {[%clk 0:00:29.4]} 53. g3 {[%clk 0:00:19.1]}
53... Kf7 {[%clk 0:00:29.5]} 54. Kg2 {[%clk 0:00:20.3]} 54... g5 {[%clk
0:00:30.5]} 55. hxg5 {[%clk 0:00:21.1]} 55... fxg5 {[%clk 0:00:31.6]} 56. Bf3
{[%clk 0:00:22.3]} 56... Kg6 {[%clk 0:00:32.5]} 57. Bd1 {[%clk 0:00:23.2]} 57...
g4 {[%clk 0:00:32.5]} 58. Bc2+ {[%clk 0:00:25.1]} 58... Kg5 {[%clk 0:00:33.6]}
59. Bd1 {[%clk 0:00:26.1]} 59... Be1 {[%clk 0:00:34.1]} 60. Bc2 {[%clk
0:00:27.3]} 60... Bc3 {[%clk 0:00:34.7]} 61. Bd1 {[%clk 0:00:28.6]} 61... Be1
{[%clk 0:00:35.7]} 62. Bc2 {[%clk 0:00:29.8]} 62... Ba5 {[%clk 0:00:36.6]} 63.
Bd1 {[%clk 0:00:31]} 63... Bc7 {[%clk 0:00:37.4]} 64. Bc2 {[%clk 0:00:32.1]}
64... Ba5 {[%clk 0:00:37.7]} 65. Bd1 {[%clk 0:00:33.3]} 1/2-1/2

[Event "*** Titled Tuesday 3|2 Blitz"]
[Site "Chess.com"]
[Date "2015.02.24"]
[Round "6"]
[White "ChessTrener"]
[Black "MinhGTrAn"]
[Result "1/2-1/2"]
[WhiteElo "2474"]
[BlackElo "2459"]
[TimeControl "180+2"]
[EndTime "12:20:44 PST"]
[Termination "Game drawn - insufficient material"]

1. d4 {[%clk 0:02:58.8]} 1... Nf6 {[%clk 0:02:59]} 2. Nf3 {[%clk 0:02:59.8]}
2... e6 {[%clk 0:03:00]} 3. Bg5 {[%clk 0:02:59.3]} 3... h6 {[%clk 0:02:58.7]} 4.
Bh4 {[%clk 0:02:57.4]} 4... Be7 {[%clk 0:02:59.7]} 5. Nbd2 {[%clk 0:02:56.5]}
5... c5 {[%clk 0:02:57.8]} 6. e3 {[%clk 0:02:52.7]} 6... b6 {[%clk 0:02:58.8]}
7. c3 {[%clk 0:02:51.2]} 7... Bb7 {[%clk 0:03:00.1]} 8. Bd3 {[%clk 0:02:51.9]}
8... g5 {[%clk 0:02:50.5]} 9. Bg3 {[%clk 0:02:43]} 9... d6 {[%clk 0:02:41.2]}
10. h3 {[%clk 0:02:36]} 10... Nbd7 {[%clk 0:02:35.1]} 11. e4 {[%clk 0:02:35.7]}
11... d5 {[%clk 0:02:23.9]} 12. exd5 {[%clk 0:02:33.1]} 12... Nxd5 {[%clk
0:02:22.7]} 13. Qe2 {[%clk 0:02:26.1]} 13... cxd4 {[%clk 0:02:18.8]} 14. Nxd4
{[%clk 0:02:23.2]} 14... Nc5 {[%clk 0:02:18.8]} 15. Bb5+ {[%clk 0:02:16.4]}
15... Kf8 {[%clk 0:02:19.4]} 16. O-O-O {[%clk 0:02:05]} 16... Rc8 {[%clk
0:02:20]} 17. N2b3 {[%clk 0:01:42.1]} 17... a6 {[%clk 0:01:59.5]} 18. Bc4 {[%clk
0:01:40.2]} 18... b5 {[%clk 0:01:48.6]} 19. Nxc5 {[%clk 0:01:39]} 19... Rxc5
{[%clk 0:01:46.7]} 20. Bb3 {[%clk 0:01:34.5]} 20... Kg7 {[%clk 0:01:43.2]} 21.
Kb1 {[%clk 0:01:21.3]} 21... Bf6 {[%clk 0:01:34.6]} 22. h4 {[%clk 0:01:21.1]}
22... a5 {[%clk 0:01:28.4]} 23. hxg5 {[%clk 0:01:16.3]} 23... hxg5 {[%clk
0:01:30.3]} 24. Rxh8 {[%clk 0:01:09.7]} 24... Qxh8 {[%clk 0:01:32.2]} 25. Nxe6+
{[%clk 0:01:04.4]} 25... fxe6 {[%clk 0:01:18.1]} 26. Qxe6 {[%clk 0:01:06.3]}
26... Qh7+ {[%clk 0:00:35.5]} 27. Bc2 {[%clk 0:00:59.8]} 27... Qg8 {[%clk
0:00:33.6]} 28. Qd6 {[%clk 0:00:57.5]} 28... Qf8 {[%clk 0:00:20.5]} 29. Qxf8+
{[%clk 0:00:56.7]} 29... Kxf8 {[%clk 0:00:22.4]} 30. Bd6+ {[%clk 0:00:58.2]}
30... Be7 {[%clk 0:00:24.3]} 31. Bxc5 {[%clk 0:00:58.7]} 31... Bxc5 {[%clk
0:00:26.2]} 32. Kc1 {[%clk 0:00:51.9]} 32... Ke7 {[%clk 0:00:16.4]} 33. Be4
{[%clk 0:00:49.8]} 33... Ke6 {[%clk 0:00:17.8]} 34. Rd2 {[%clk 0:00:49.9]} 34...
Bd6 {[%clk 0:00:18.1]} 35. g3 {[%clk 0:00:50.1]} 35... Bc6 {[%clk 0:00:16.2]}
36. b3 {[%clk 0:00:45.5]} 36... Ba3+ {[%clk 0:00:13.5]} 37. Kc2 {[%clk
0:00:46.3]} 37... Nb4+ {[%clk 0:00:12]} 38. cxb4 {[%clk 0:00:47.4]} 38... Bxe4+
{[%clk 0:00:13.5]} 39. Kd1 {[%clk 0:00:49.3]} 39... Bf3+ {[%clk 0:00:11.7]} 40.
Kc2 {[%clk 0:00:50.2]} 40... Be4+ {[%clk 0:00:12.4]} 41. Kd1 {[%clk 0:00:50.5]}
41... Bf3+ {[%clk 0:00:12.1]} 42. Kc2 {[%clk 0:00:51.7]} 42... Bxb4 {[%clk
0:00:13.5]} 43. Rd8 {[%clk 0:00:51.8]} 43... Kf5 {[%clk 0:00:12.8]} 44. Kd3
{[%clk 0:00:50.1]} 44... Be4+ {[%clk 0:00:12.3]} 45. Kd4 {[%clk 0:00:50.8]}
45... Bf3 {[%clk 0:00:11]} 46. Rb8 {[%clk 0:00:42.5]} 46... Be2 {[%clk
0:00:12.3]} 47. Ke3 {[%clk 0:00:42.9]} 47... Bf1 {[%clk 0:00:13.3]} 48. Kd4
{[%clk 0:00:38.5]} 48... Kg4 {[%clk 0:00:13.1]} 49. f4 {[%clk 0:00:28.5]} 49...
gxf4 {[%clk 0:00:07.3]} 50. gxf4 {[%clk 0:00:29.6]} 50... Kxf4 {[%clk
0:00:09.2]} 51. Rb7 {[%clk 0:00:28.3]} 51... Be2 {[%clk 0:00:08.6]} 52. Rh7
{[%clk 0:00:24.8]} 52... Kg5 {[%clk 0:00:07.9]} 53. Rf7 {[%clk 0:00:25]} 53...
Kg6 {[%clk 0:00:08.5]} 54. Rf2 {[%clk 0:00:25.2]} 54... Bg4 {[%clk 0:00:08]} 55.
Kd5 {[%clk 0:00:25.6]} 55... Bd7 {[%clk 0:00:06]} 56. Rc2 {[%clk 0:00:26.2]}
56... Kf6 {[%clk 0:00:06.7]} 57. Re2 {[%clk 0:00:26.6]} 57... Kf7 {[%clk
0:00:06.5]} 58. Re3 {[%clk 0:00:25.7]} 58... Kf8 {[%clk 0:00:06.6]} 59. Re4
{[%clk 0:00:25.6]} 59... Be7 {[%clk 0:00:06.3]} 60. a4 {[%clk 0:00:25.1]} 60...
bxa4 {[%clk 0:00:05.8]} 61. bxa4 {[%clk 0:00:27]} 61... Bb4 {[%clk 0:00:07.7]}
62. Rxb4 {[%clk 0:00:26]} 62... axb4 {[%clk 0:00:06.5]} 63. Kc4 {[%clk
0:00:27.9]} 63... Bxa4 {[%clk 0:00:05.4]} 64. Kxb4 {[%clk 0:00:29]} 1/2-1/2